bitfinex-derivatives/quotes_ETHF0:USTF0_20251005
["timestamp","ask_amount","ask_price","bid_price","bid_amount"]
[1759680968925,0.75909078,4539.6,4539.5,0.9487508]
[1759680969126,1.15547078,4539.6,4539.5,0.7277508]
[1759680969322,1.15547078,4539.6,4539.5,0.2130508]
[1759680969829,1.15547078,4539.6,4539.5,0.5225508]
[1759680971623,1.15547078,4539.6,4539.5,0.2130508]
[1759680971824,1.15547078,4539.6,4539.5,0.0020508]
[1759680973225,1.15547078,4539.6,4538.8,0.39645]
[1759680973226,1.15355,4538.8,4538.7,0.5205]
[1759680973533,1.15355,4538.8,4538.7,0.211]
[1759680974429,1.15355,4538.8,4538.7,0.00269694]
[1759680976039,1.15355,4538.8,4537.5,0.1345]
[1759680976040,0.8858,4538.0,4537.9,0.24303687]
[1759680976230,0.8858,4538.0,4537.9,0.76353687]
[1759680976431,0.8858,4538.0,4537.9,0.54253687]
[1759680976629,0.8858,4538.0,4537.9,0.23303687]
[1759680977028,0.8858,4538.0,4537.9,0.54495267]
[1759680978532,0.8858,4538.0,4537.9,0.23545267]
[1759680978835,0.8858,4538.0,4537.9,0.76905267]
[1759680980734,0.8858,4538.0,4537.9,0.02445267]
[1759680981040,1.15659,4537.3,4537.2,0.5497]
[1759680981334,0.76,4537.3,4537.2,0.7569]
[1759680982037,0.76,4537.3,4537.2,0.75887964]
[1759680986134,0.76,4537.3,4537.2,0.22527964]
[1759680986335,0.76,4537.3,4537.2,0.55167964]
[1759680986742,0.76,4537.3,4537.2,0.75887964]
[1759680987837,0.76,4537.3,4537.2,0.00197964]
[1759680990544,1.15659,4537.3,4537.2,0.00197964]
[1759680990848,4.22471695,4537.3,4537.2,0.00197964]
[1759680995151,0.7606,4535.9,4535.8,3.4328]
[1759680995351,0.7606,4535.9,4535.8,3.9726]
[1759680996150,0.55440437,4535.9,4535.8,3.97465083]
[1759680997748,0.00260437,4535.9,4535.8,3.97465083]
[1759680997953,0.339,4536.5,4536.4,0.7648]
[1759680998353,0.5518,4536.5,4536.4,0.7648]
[1759680998850,0.55373309,4536.5,4536.4,0.7648]
[1759680999248,0.76253309,4536.5,4536.4,0.7648]
[1759681001144,0.55373309,4536.5,4536.4,0.7648]
[1759681002252,0.76253309,4536.5,4536.4,0.7648]
[1759681003056,1.15919309,4536.5,4536.4,0.7648]
[1759681003256,1.28499309,4536.5,4536.4,0.7648]
[1759681007058,0.88833309,4536.5,4536.4,0.7648]
[1759681007557,0.88833309,4536.5,4536.3,3.60447]
[1759681007558,0.3085,4536.4,4536.3,3.60447]
[1759681007856,0.7541,4536.4,4536.3,4.36547]
[1759681008056,0.7541,4536.4,4536.3,4.59077]
[1759681008257,0.7541,4536.4,4536.3,4.1941]
[1759681008658,0.533,4536.4,4536.3,4.59078]
[1759681008957,0.00193309,4536.5,4536.4,1.16197]
[1759681010453,0.00193309,4536.5,4536.4,1.95002623]
[1759681013259,0.00193309,4536.5,4536.4,1.16197]
[1759681016658,0.00193309,4536.5,4536.4,2.3500743]
[1759681016859,3.2078,4537.3,4537.2,0.8381]
[1759681017055,3.2078,4537.3,4537.2,1.3829]
[1759681017864,3.51842591,4537.3,4537.2,1.3829]
[1759681018062,3.74292591,4537.3,4537.2,1.3829]
[1759681019458,3.20992591,4537.3,4537.2,1.3829]
[1759681019656,0.7541,4538.4,4538.3,1.1618]
[1759681019854,0.7541,4538.4,4538.3,1.3828]
[1759681020558,0.75694943,4538.4,4538.3,1.3828]
[1759681020765,0.75694943,4538.4,4538.3,0.221]
[1759681024565,0.75694943,4538.4,4538.3,0.6175]
[1759681025268,0.75694943,4538.4,4538.3,0.3965]
[1759681025462,0.75694943,4538.4,4538.3,0.9365]
[1759681027570,0.75694943,4538.4,4538.3,1.1618]
[1759681029570,0.75694943,4538.4,4538.3,0.3965]
[1759681029971,0.75694943,4538.4,4538.3,0.9365]
[1759681030172,0.75694943,4538.4,4538.3,1.1618]
[1759681033272,9.43e-06,4538.4,4538.3,1.1618]
[1759681033872,9.43e-06,4538.4,4538.3,1.95385103]
[1759681038478,3.9686,4539.6,4539.5,0.9316]
[1759681038676,3.9686,4539.6,4539.5,0.6174]
[1759681039078,0.7608,4539.6,4539.5,0.6174]
[1759681039579,0.76347446,4539.6,4539.5,0.84466409]
[1759681041178,0.76347446,4539.6,4539.5,0.61956409]
[1759681042378,0.76347446,4539.6,4539.5,0.84466409]
[1759681043077,0.76347446,4539.6,4539.5,1.15476409]
[1759681043472,0.76347446,4539.6,4539.5,0.61956409]
[1759681043669,0.76347446,4539.6,4539.5,0.00216409]
[1759681043977,0.7608,4538.6,4538.5,1.18568143]
[1759681044282,0.8879,4538.5,4538.4,0.61749]
[1759681045072,0.8879,4538.5,4538.4,0.6197053]
[1759681045674,0.8879,4538.5,4538.4,0.3987053]
[1759681045880,0.8879,4538.5,4538.4,0.0022153]
[1759681050988,0.8879,4538.5,4538.4,0.3987053]
[1759681052187,0.2079,4538.6,4538.5,0.93108]
[1759681052381,0.2079,4538.6,4538.4,0.3987053]
[1759681052382,0.1276,4538.5,4538.4,0.3987053]
[1759681052588,0.8635,4538.5,4538.4,0.3987053]
[1759681054479,0.306,4538.5,4538.4,1.1452053]
[1759681055083,0.5139,4538.5,4538.4,1.1452053]
[1759681055482,0.7359,4538.5,4538.4,1.1452053]
[1759681056794,0.5139,4538.9,4538.8,1.14296]
[1759681056995,0.7359,4538.9,4538.8,1.14296]
[1759681057196,3.65109003,4538.9,4538.8,1.14296]
[1759681058096,3.65109003,4538.9,4538.8,0.7465]
[1759681058296,3.42909003,4538.9,4538.8,1.14296]
[1759681058597,0.7359,4538.9,4538.8,1.14296]
[1759681058994,0.8635,4538.5,4538.4,0.0022153]
[1759681060094,1.25998,4538.5,4538.4,0.0022153]
[1759681060502,1.25998,4538.5,4538.4,0.2281153]
[1759681060802,1.25998,4538.5,4538.4,0.0022153]
[1759681060996,4.46778,4538.5,4538.4,0.0022153]
[1759681061897,12.57281505,4538.5,4538.4,0.0022153]
[1759681062403,7.57281505,4538.5,4538.4,0.0022153]
[1759681063494,12.57281505,4538.5,4538.4,0.0022153]
[1759681063699,0.5575,4537.5,4537.4,0.78920143]
[1759681063899,0.8635,4537.5,4537.4,0.78920143]
[1759681064299,0.7359,4537.4,4537.3,1.32380143]
[1759681064602,0.7359,4537.4,4537.3,1.32842873]
[1759681065103,0.7359,4537.4,4537.3,1.54032873]
[1759681067003,0.5139,4537.4,4537.3,1.93691873]
[1759681069398,1.13248,4537.4,4537.3,1.54032873]
[1759681069601,0.7359,4537.4,4537.3,1.76132873]
[1759681069898,0.7359,4537.4,4537.3,0.97002693]
[1759681070207,0.7359,4537.4,4537.3,1.54032873]
[1759681070409,0.7359,4537.4,4537.3,1.76132873]
[1759681070610,0.7359,4537.4,4537.3,2.15791873]
[1759681070806,0.7359,4537.4,4537.3,1.36661693]
[1759681071110,0.7359,4537.4,4537.3,0.97002693]
[1759681072809,0.7359,4537.4,4537.3,0.74902693]
[1759681073108,1.13248,4537.4,4537.3,0.44942693]
[1759681073508,0.7359,4537.4,4537.3,1.39161693]
[1759681074508,0.5139,4537.4,4537.3,1.39161693]
[1759681074709,0.39656,4537.6,4537.3,1.39161693]
[1759681075008,0.39656,4537.6,4537.3,1.06501693]
[1759681075211,0.94257,4537.5,4537.4,0.7682]
[1759681076012,0.94257,4537.5,4537.4,0.9892]
[1759681076610,0.546,4537.5,4537.4,0.9892]
[1759681078112,0.94257,4537.5,4537.4,0.9892]
[1759681078308,1.29147,4537.5,4537.4,0.9892]
[1759681078505,1.29147,4537.5,4537.4,0.7702]
[1759681078707,0.7619,4537.5,4537.4,0.9892]
[1759681078906,0.2125,4537.8,4537.7,0.4416]
[1759681079102,0.546,4537.8,4537.7,1.16475]
[1759681079306,3.3354,4538.5,4538.1,0.4416]
[1759681079307,0.94251,4538.2,4538.1,0.4416]
[1759681079502,0.546,4538.2,4538.1,0.7682]
[1759681079912,0.94251,4538.2,4538.1,0.7682]
[1759681080307,1.15841,4538.2,4538.1,0.7682]
[1759681082009,0.52953,4538.0,4537.9,0.221]
[1759681082216,1.29143,4538.0,4537.9,0.221]
[1759681082803,1.29143,4538.0,4537.9,0.7702]
[1759681083516,1.29143,4538.0,4537.9,0.5492]
[1759681084314,1.15846,4537.6,4537.5,0.2226]
[1759681084704,0.82498,4537.4,4537.3,0.44612693]
[1759681085012,1.15848,4537.4,4537.3,0.77272693]
[1759681085515,1.15848,4537.4,4537.3,0.44612693]
[1759681086311,1.15848,4537.4,4537.3,0.22512693]
[1759681086518,1.15848,4537.4,4537.3,0.00252693]
[1759681089111,4.08960672,4537.4,4537.3,6.93e-06]
[1759681089711,4.31060672,4537.4,4537.3,6.93e-06]
[1759681090710,0.39665,4536.6,4536.5,0.3266]
[1759681090916,4.36635,4536.6,4536.5,0.5492]
[1759681091413,1.15858,4536.3,4536.2,0.7702]
[1759681091821,1.16059799,4536.3,4536.2,0.99119141]
[1759681092212,1.16059799,4536.3,4536.2,0.77019141]
[1759681095214,1.16059799,4536.3,4536.2,0.00199141]
[1759681095415,1.15862,4535.8,4535.6,0.7913018]
[1759681095619,1.15864,4535.6,4535.5,0.5492]
[1759681096621,1.15864,4535.6,4535.5,0.22520807]
[1759681096819,1.15864,4535.6,4535.5,0.00260807]
[1759681098920,4.36644,4535.6,4535.5,0.00260807]
[1759681103321,4.58744,4535.6,4535.5,0.75920807]
[1759681103720,4.58744,4535.6,4535.5,0.00260807]
[1759681106122,7.42495154,4535.6,4535.5,0.00260807]
[1759681111031,7.20395154,4535.6,4535.5,0.00260807]
[1759681111221,7.42495154,4535.6,4535.5,0.00260807]
[1759681111424,7.20395154,4535.6,4535.5,0.00260807]
[1759681111730,7.42495154,4535.6,4535.5,0.00260807]
[1759681113130,7.20395154,4535.6,4535.5,0.00260807]
[1759681113332,7.42495154,4535.6,4535.5,0.00260807]
[1759681115131,7.20395154,4535.6,4535.5,0.00260807]
[1759681115335,7.42495154,4535.6,4535.5,0.00260807]
[1759681117536,7.20395154,4535.6,4535.5,0.00260807]
[1759681117736,7.42495154,4535.6,4535.5,0.00260807]
[1759681118035,7.20395154,4535.6,4535.5,0.00260807]
[1759681118340,7.42495154,4535.6,4535.5,0.00260807]
[1759681118930,7.20395154,4535.6,4535.5,0.00260807]
[1759681119134,7.42495154,4535.6,4535.5,0.00260807]
[1759681119327,7.20395154,4535.6,4535.5,0.00260807]
[1759681119536,7.42495154,4535.6,4535.5,0.00260807]
[1759681126640,7.20395154,4535.6,4535.5,0.00260807]
[1759681126843,7.42495154,4535.6,4535.5,0.00260807]
[1759681132047,7.42495154,4535.6,4534.5,1.3190018]
[1759681132048,0.81862,4534.6,4534.5,1.3190018]
[1759681132346,4.55532,4534.6,4534.5,0.5277]
[1759681132651,4.55532,4534.6,4534.5,0.7531]
[1759681133151,4.55532,4534.6,4534.5,0.75549395]
[1759681136138,0.3968,4534.9,4534.5,5.56609395]
[1759681136346,0.39681,4534.8,4534.7,0.7531]
[1759681136540,0.60071,4534.8,4534.7,0.7531]
[1759681136743,0.90861,4534.8,4534.7,0.7531]
[1759681138752,1.12651,4534.8,4534.7,0.7531]
[1759681139847,0.7297,4534.8,4534.7,0.7531]
[1759681140157,1.12651,4534.8,4534.7,0.7531]
[1759681140746,1.12652,4534.6,4534.5,0.00239395]
[1759681142054,4.55532,4534.6,4534.5,0.00239395]
[1759681146556,4.55532,4534.6,4534.5,0.75549395]
[1759681147753,3.9375,4534.6,4534.5,0.75549395]
[1759681147953,0.5118,4534.9,4534.8,0.4342]
[1759681148164,0.7297,4534.9,4534.8,0.7531]
[1759681148456,3.54025683,4534.9,4534.8,0.7531]
[1759681149552,3.5157,4535.2,4534.8,5.7531]
[1759681149858,3.5157,4535.2,4535.1,0.7531]
[1759681150059,3.7196,4535.2,4535.1,0.7531]
[1759681150654,0.5118,4535.2,4535.1,0.7531]
[1759681152146,0.2039,4535.2,4535.1,0.7531]
[1759681152550,0.3079,4535.4,4535.3,0.4342]
[1759681152551,0.2039,4535.4,4535.3,0.4342]
[1759681152764,0.3079,4535.5,4535.3,0.4342]
[1759681153157,0.3079,4535.5,4535.4,0.3189]
[1759681153356,0.5118,4535.5,4535.4,0.7531]
[1759681153755,0.8617,4535.5,4535.4,0.7531]
[1759681154256,0.7297,4535.5,4535.4,0.7531]
[1759681154560,0.70461,4535.9,4535.6,0.4342]
[1759681154755,0.3079,4535.8,4535.7,0.7531]
[1759681156163,0.5118,4535.8,4535.7,0.7531]
[1759681156358,3.4117,4536.2,4536.1,0.4342]
[1759681156666,3.2078,4536.2,4536.1,0.7531]
[1759681156863,3.4117,4536.2,4536.1,0.7531]
[1759681157163,3.7196,4536.2,4536.1,0.7531]
[1759681157359,0.5118,4536.2,4536.1,0.7531]
[1759681157565,0.334,4536.5,4536.1,0.83089]
[1759681157764,0.73066,4536.5,4536.2,0.7758]
[1759681157966,0.334,4536.5,4536.2,0.7758]
[1759681158363,0.56041799,4536.3,4536.2,0.7758]
[1759681158963,0.77211799,4536.3,4536.2,0.7758]
[1759681159161,0.00201799,4536.3,4536.2,6.5671018]
[1759681159465,1e-08,4536.3,4536.2,6.5671018]
[1759681160369,1e-08,4536.3,4536.2,0.9968]
[1759681160672,0.77010001,4536.3,4536.2,0.7758]
[1759681160865,0.77010001,4536.3,4536.2,0.9968]
[1759681161170,0.22440001,4536.3,4536.2,0.9968]
[1759681162369,0.55840001,4536.3,4536.2,0.9968]
[1759681162569,0.55840001,4536.3,4536.2,0.7758]
[1759681162777,0.55840001,4536.3,4536.2,0.9968]
[1759681163971,0.55840001,4536.3,4536.2,0.7758]
[1759681164171,0.55840001,4536.3,4536.2,0.9968]
[1759681166077,0.77010001,4536.3,4536.2,0.9968]
[1759681166273,0.77010001,4536.3,4536.2,0.7758]
[1759681166577,0.77010001,4536.3,4536.1,0.39669]
[1759681166578,0.7701,4536.2,4536.1,0.62049]
[1759681166781,0.7701,4536.2,4536.1,1.17269]
[1759681168068,0.7701,4536.2,4536.1,0.555]
[1759681168372,0.7701,4536.2,4536.1,0.2238]
[1759681168771,0.7701,4536.2,4536.1,0.95169]
[1759681169177,0.7701,4536.2,4536.1,1.17249]
[1759681169974,0.7701,4536.2,4536.0,0.221]
[1759681170476,0.7701,4536.2,4536.1,0.2238]
[1759681170674,0.9023,4536.0,4535.5,0.52624]
[1759681170881,0.9023,4536.0,4535.9,0.221]
[1759681171773,0.9023,4536.0,4535.8,0.221]
[1759681171974,0.7327,4535.9,4535.8,0.7653]
[1759681173375,1.12941,4535.9,4535.8,0.5443]
[1759681173580,1.12941,4535.9,4535.8,0.2131]
[1759681175982,0.7327,4535.9,4535.8,0.2131]
[1759681176480,1.12941,4535.9,4535.8,0.2131]
[1759681177681,1.12941,4535.9,4535.8,0.5271]
[1759681178376,0.7327,4535.9,4535.8,0.5271]
[1759681178577,0.5269,4536.2,4536.1,1.13959]
[1759681178779,0.5269,4536.2,4536.0,0.1234]
[1759681178780,3.20780001,4536.3,4536.2,0.71068]
[1759681178980,3.20780001,4536.3,4536.2,1.13958]
[1759681180583,0.30850001,4536.3,4536.2,1.13958]
[1759681180780,1e-08,4536.3,4536.2,0.82558]
[1759681182284,0.52690001,4536.3,4536.2,1.13958]
[1759681183285,0.52690001,4536.3,4536.2,0.7429]
[1759681187981,1.12938001,4536.3,4536.2,0.7429]
[1759681188183,1.12938001,4536.3,4536.2,0.2131]
[1759681188380,1.16501,4535.9,4535.8,0.7913018]
[1759681188582,0.39673,4535.7,4535.6,1.3320018]
[1759681188888,0.7683,4535.7,4535.6,1.5465018]
[1759681189186,0.7683,4535.7,4535.6,1.7646018]
[1759681190081,0.2154,4535.7,4535.6,1.7646018]
[1759681190286,0.333,4535.9,4535.8,0.3197]
[1759681190579,0.5484,4535.9,4535.8,0.7523]
[1759681193188,0.94511,4535.9,4535.8,0.7523]
[1759681193487,1.16501,4535.9,4535.8,0.7523]
[1759681193888,0.7683,4535.9,4535.8,0.7523]
[1759681195689,0.7683,4535.9,4535.8,1.54431226]
[1759681195892,0.333,4536.1,4535.8,1.22461226]
[1759681196086,0.5484,4536.1,4536.0,0.8846]
[1759681196390,0.94509,4536.1,4536.0,0.8846]
[1759681196893,1.16499,4536.1,4536.0,0.7523]
[1759681198791,1.16499,4536.1,4536.0,1.2813]
[1759681198792,0.333,4536.1,4536.0,1.2813]
[1759681199095,1e-08,4536.3,4536.1,0.3197]
[1759681199285,1e-08,4536.3,4536.2,0.3197]
[1759681199693,1e-08,4536.3,4536.2,0.7523]
[1759681199694,0.54840001,4536.3,4536.2,0.7523]
[1759681199884,1e-08,4536.3,4536.2,0.7523]
[1759681200082,1e-08,4536.3,4536.2,0.4326]
[1759681200989,0.39668001,4536.3,4536.2,0.4326]
[1759681201190,0.94508001,4536.3,4536.2,0.7523]
[1759681201593,1e-08,4536.3,4536.2,0.7523]
[1759681201889,1e-08,4536.3,4536.2,0.4326]
[1759681202291,0.33300001,4536.3,4536.2,0.7523]
[1759681202894,0.72968001,4536.3,4536.2,0.7523]
[1759681203292,0.54840001,4536.3,4536.2,0.7523]
[1759681204895,1.16498001,4536.3,4536.2,0.2145]
[1759681205099,1.2919,4536.0,4535.9,0.79201226]
[1759681205290,1.16501,4535.9,4535.8,1.01301226]
[1759681205491,1.16501,4535.9,4535.7,0.221]
[1759681205793,1.16502,4535.8,4535.7,0.7552]
[1759681206693,1.16502,4535.8,4535.7,0.4355]
[1759681207092,0.7683,4535.8,4535.7,0.4355]
[1759681207291,0.7683,4535.8,4535.7,0.7552]
[1759681207689,0.7683,4535.8,4535.7,0.5342]
[1759681207893,0.7683,4535.8,4535.7,0.7552]
[1759681208396,0.7683,4535.8,4535.7,2.16137654]
[1759681208798,0.5484,4536.1,4536.0,0.4326]
[1759681208994,0.5484,4536.1,4536.0,1.54558952]
[1759681209497,0.8952,4536.0,4535.9,0.79328952]
[1759681209694,0.7683,4535.9,4535.8,1.54558952]
[1759681209894,0.7683,4535.9,4535.8,1.54563032]
[1759681210194,0.7683,4535.9,4535.8,1.54563276]
[1759681210393,0.7683,4535.9,4535.8,1.76663276]
[1759681213502,0.7683,4535.9,4535.8,0.9733]
[1759681214901,0.7683,4535.9,4535.8,0.7523]
[1759681215102,3.20780001,4536.3,4535.8,0.6536]
[1759681215103,0.333,4536.2,4535.8,0.6536]
[1759681215307,0.5484,4536.2,4536.1,0.4326]
[1759681215601,0.5484,4536.2,4536.1,0.7523]
[1759681216200,0.7683,4536.2,4536.1,0.7523]
[1759681217295,0.7683,4536.2,4536.1,0.9733]
[1759681220001,0.5749,4536.0,4535.9,1.01438255]
[1759681220203,0.8898,4536.0,4535.9,1.01438255]
[1759681220704,0.7596,4536.0,4535.9,1.76828255]
[1759681220907,1e-08,4536.3,4536.2,0.39668]
[1759681221206,1e-08,4536.3,4536.2,0.61768]
[1759681224712,0.53550001,4536.3,4536.2,1.04448]
[1759681224909,0.22060001,4536.3,4536.2,1.37158]
[1759681225410,0.75960001,4536.3,4536.2,1.37158]
[1759681226109,0.75960001,4536.3,4536.2,0.9749]
[1759681226311,1.15628001,4536.3,4536.2,0.9749]
[1759681227106,0.75960001,4536.3,4536.2,0.9749]
[1759681227505,0.75960001,4536.3,4536.2,0.7539]
[1759681227700,0.75960001,4536.3,4536.2,0.9749]
[1759681228510,0.3149,4536.2,4536.0,0.79358508]
[1759681228715,0.7596,4536.1,4536.0,0.79358508]
[1759681228918,1.2865,4536.0,4535.9,0.79358508]
[1759681231402,0.8898,4536.0,4535.9,0.79358508]
[1759681233610,0.8898,4536.0,4535.9,1.00458508]
[1759681233818,0.8898,4536.0,4535.9,1.33078508]
[1759681235518,1.2865,4536.0,4535.9,1.33078508]
[1759681236120,0.8898,4536.0,4535.9,1.33078508]
[1759681238022,1.2865,4536.0,4535.9,1.33078508]
[1759681239522,1.2865,4536.0,4535.9,0.5372]
[1759681239723,0.8898,4536.0,4535.9,0.5372]
[1759681239916,1.2865,4536.0,4535.9,0.5372]
[1759681240113,1.15153,4535.7,4535.6,0.79358508]
[1759681240322,1.15155,4535.4,4535.3,0.79358508]
[1759681240718,0.3167,4535.3,4535.2,0.79358508]
[1759681240923,0.7548,4535.3,4535.2,1.01438508]
[1759681241119,0.7548,4535.3,4535.2,0.2208]
[1759681242320,0.3167,4535.2,4535.1,0.79358508]
[1759681242524,0.1337,4535.0,4534.9,1.01438508]
[1759681242821,0.8885,4535.0,4534.9,1.34058508]
[1759681243319,0.8885,4535.0,4534.9,0.547]
[1759681243821,0.8885,4535.0,4534.9,0.7648]
[1759681247525,0.7548,4535.0,4534.9,0.7648]
[1759681249617,0.7548,4535.0,4534.9,1.1616]
[1759681252623,0.2219,4535.3,4535.2,0.2091]
[1759681252828,0.5487,4535.3,4535.2,0.7563]
[1759681253926,0.5487,4535.3,4535.2,1.15307]
[1759681254132,3.2078,4535.7,4535.6,0.72954]
[1759681254335,3.2078,4535.7,4535.6,1.15304]
[1759681255228,0.3268,4536.2,4535.8,0.39672]
[1759681255229,3.5346,4536.2,4535.8,0.39672]
[1759681255429,3.7565,4536.2,4536.1,0.4235]
[1759681255629,3.9616,4536.2,4536.1,0.7563]
[1759681256529,0.7538,4536.2,4536.1,0.7563]
[1759681259737,0.5487,4536.2,4536.1,0.7563]
[1759681260928,1.15048,4536.2,4536.1,0.7563]
[1759681261931,0.955,4536.0,4535.9,0.4354]
[1759681262232,0.955,4536.0,4535.9,0.7682]
[1759681262233,1.2818,4536.0,4535.9,0.7682]
[1759681262631,0.8851,4536.0,4535.9,0.7682]
[1759681263033,0.7538,4536.0,4535.9,0.9773]
[1759681264338,0.7538,4536.0,4535.9,0.7563]
[1759681266037,0.7538,4536.0,4535.9,1.15301]
[1759681266338,0.7538,4536.0,4535.9,0.7563]
[1759681267238,1.1505,4536.0,4535.9,0.7563]
[1759681269852,0.7538,4536.0,4535.9,0.7563]
[1759681271036,0.8851,4536.0,4535.9,0.7563]
[1759681273239,0.8851,4536.0,4535.7,0.39672]
[1759681273438,0.5583,4536.0,4535.7,0.61772]
[1759681273737,0.7538,4535.8,4535.7,0.2144]
[1759681273941,0.7538,4535.8,4535.6,0.72953]
[1759681274141,0.3268,4535.7,4535.6,0.72953]
[1759681274342,0.7538,4535.7,4535.6,0.94393]
[1759681279746,0.7538,4535.7,4535.6,0.5472]
[1759681280242,0.7538,4535.7,4535.6,0.7563]
[1759681280435,0.7538,4535.7,4535.6,1.15304]
[1759681281041,0.7538,4535.7,4535.6,0.7563]
[1759681281944,0.5487,4535.7,4535.6,1.15304]
[1759681283246,0.7589,4535.7,4535.6,1.94662508]
[1759681284051,0.5487,4535.7,4535.6,1.94662508]
[1759681284253,0.5487,4535.7,4535.6,1.15304]
[1759681284749,1.15563,4535.7,4535.6,0.7563]
[1759681284950,1.15563,4535.7,4535.6,0.5351]
[1759681287351,0.559,4535.5,4535.4,1.18807654]
[1759681287655,0.3116,4535.5,4535.4,2.55252654]
[1759681288356,0.5349,4535.5,4535.4,2.55252654]
[1759681296159,0.1313,4536.0,4535.8,0.39672]
[1759681296360,0.1313,4536.0,4535.4,2.15577654]
[1759681296361,0.543,4536.1,4536.0,1.1692]
[1759681296663,0.543,4536.1,4536.0,1.3045]
[1759681296664,0.2239,4536.1,4536.0,1.3045]
[1759681297255,3.2078,4536.2,4536.1,0.61869]
[1759681297467,3.5269,4536.2,4536.1,1.16919]
[1759681300163,3.7508,4536.2,4536.1,1.16919]
[1759681300958,1e-08,4536.3,4536.2,0.39668]
[1759681301161,1e-08,4536.3,4536.2,0.61768]
[1759681303161,1e-08,4536.3,4536.2,1.80524473]
[1759681303361,1e-08,4536.3,4536.2,6.80524473]
[1759681304065,1e-08,4536.3,4536.2,5.61768]
[1759681304364,1e-08,4536.3,4536.2,6.80473252]
[1759681305564,1e-08,4536.3,4536.2,5.61768]
[1759681305754,1e-08,4536.3,4536.2,6.8042632]
[1759681307163,1e-08,4536.3,4536.2,5.61768]
[1759681311267,1e-08,4536.3,4536.2,0.61768]
[1759681322071,0.76260001,4536.3,4536.2,0.82988]
[1759681322270,0.76260001,4536.3,4536.2,0.60888]
[1759681322469,0.76260001,4536.3,4536.2,1.62032223]
[1759681322670,0.76260001,4536.3,4536.2,0.82988]
[1759681322874,0.76260001,4536.3,4536.2,1.93819173]
[1759681323377,0.76260001,4536.3,4536.2,1.14788]
[1759681323989,0.76260001,4536.3,4536.2,0.39668]
[1759681324179,0.76260001,4536.3,4536.2,0.61768]
[1759681324378,0.76260001,4536.3,4536.2,1.35698]
[1759681327180,0.76260001,4536.3,4536.2,2.5435632]
[1759681327770,0.3241,4536.8,4536.7,0.81794]
[1759681327980,0.564,4537.5,4537.4,0.39658]
[1759681328176,0.564,4537.5,4537.4,0.61758]
[1759681328680,0.8881,4537.5,4537.4,0.61758]
[1759681328981,0.88969725,4537.5,4537.4,0.61758]
[1759681331288,0.88969725,4537.5,4537.4,0.221]
[1759681332776,0.88969725,4537.5,4537.4,0.61758]
[1759681334089,0.88969725,4537.5,4537.4,0.221]
[1759681335892,0.88969725,4537.5,4537.4,0.61758]
[1759681336688,0.88969725,4537.5,4537.4,0.221]
[1759681337292,0.88969725,4537.5,4537.4,0.82978]
[1759681337489,0.88969725,4537.5,4537.4,1.14718]
[1759681337786,0.88969725,4537.5,4537.4,0.82978]
[1759681337981,0.88969725,4537.5,4537.4,1.14718]
[1759681338793,0.88969725,4537.5,4537.4,0.7506]
[1759681339091,0.88969725,4537.5,4537.4,1.14718]
[1759681339989,0.88969725,4537.5,4537.4,0.7506]
[1759681340494,0.88969725,4537.5,4537.4,0.4332]
[1759681340891,1.28626725,4537.5,4537.4,0.221]
[1759681341191,0.7555,4536.9,4536.8,0.79092559]
[1759681341391,0.7555,4536.9,4536.8,0.61763]
[1759681341589,0.7555,4536.9,4536.8,1.40855559]
[1759681341793,0.7555,4536.9,4536.8,0.79092559]
[1759681342092,0.7555,4536.9,4536.7,0.39664]
[1759681342093,0.3178,4536.8,4536.7,1.40856559]
[1759681342391,0.7555,4536.8,4536.7,1.40856559]
[1759681342886,0.7555,4536.8,4536.7,0.79092559]
[1759681343088,0.7555,4536.8,4536.7,1.40556559]
[1759681343288,0.7555,4536.8,4536.7,1.72296559]
[1759681343589,0.7555,4536.8,4536.7,0.79092559]
[1759681344784,0.7555,4536.8,4536.7,1.18756559]
[1759681344990,0.7555,4536.8,4536.7,1.40556559]
[1759681345387,0.7555,4536.8,4536.7,1.72296559]
[1759681345591,0.7555,4536.8,4536.7,1.40556559]
[1759681346503,1.15213,4536.8,4536.7,0.79092559]
[1759681346697,0.7555,4536.8,4536.7,0.79092559]
[1759681347300,0.7555,4536.8,4536.7,1.32632559]
[1759681347600,0.7555,4536.8,4536.7,1.93036559]
[1759681356000,0.7555,4536.8,4536.7,1.53372559]
[1759681356207,0.7555,4536.8,4536.7,1.00892559]
[1759681357307,0.7555,4536.8,4536.7,0.79092559]
[1759681358505,0.7555,4536.8,4536.7,1.18756559]
[1759681358697,0.7555,4536.8,4536.7,1.94406559]
[1759681359501,0.5357,4536.8,4536.7,1.94406559]
[1759681361310,0.5357,4536.8,4536.7,2.16506559]
[1759681365405,0.3171,4537.0,4536.7,1.43432559]
[1759681365611,3.2078,4537.2,4537.1,1.15311]
[1759681365808,0.74819725,4537.5,4537.4,0.4224]
[1759681366007,0.74819725,4537.5,4537.4,0.7565]
[1759681366203,3.65212163,4537.5,4537.4,0.7565]
[1759681366603,4.04869163,4537.5,4537.4,0.7565]
[1759681367812,4.26499163,4537.5,4537.4,0.7565]
[1759681369015,4.39249163,4537.5,4537.4,0.7565]
[1759681371303,1.1505,4537.3,4537.2,0.2244]
[1759681371510,1.1505,4537.3,4537.2,0.5586]
[1759681371906,0.8814,4537.0,4536.9,0.5586]
[1759681372111,0.8814,4537.0,4536.9,0.7796]
[1759681372308,0.8814,4537.0,4536.9,1.39422]
[1759681372502,0.7539,4537.0,4536.9,1.39422]
[1759681373207,0.8814,4537.0,4536.9,0.3342]
[1759681373407,1.15052,4536.9,4536.7,1.01192559]
[1759681373609,0.83642,4536.9,4536.7,1.01192559]
[1759681373809,3.57548675,4536.8,4536.7,1.56752559]
[1759681374010,3.57548675,4536.8,4536.7,1.17324]
[1759681374211,0.7539,4536.8,4536.7,1.17324]
[1759681374514,0.7539,4536.8,4536.7,1.96616709]
[1759681375313,0.7539,4536.8,4536.7,2.18716709]
[1759681375512,0.2258,4536.8,4536.7,2.18716709]